Cogmind - Beta 14 @@@ ROGUE MODE // 2024.10.28 @ 00:44:29 Player: MarKhan Result: Destroyed by H-66 Slayer with Gauss Rifle Performance ------------- Evolutions (5) 2500 Regions Visited (11) 2200 Robots Destroyed (132) 660 Value Destroyed (7354) 7354 Prototype IDs (23) 460 Alien Tech Used (0) 0 Bonus (7693) 7693 TOTAL SCORE: 20867 Bonus ------- Triggered High Security 500 High Alert Combat Kills 2913 Follower Combat Kills 2225 Entered Garrisons 600 Used RIF Installer 1500 Registered with UFD 300 Friendly Fire -345 Cogmind --------- Core Integrity 0/1000 Matter 300/300 Energy 169/170 System Corruption 36% Temperature Cool (3) Movement Flying (30) Location -5/Factory Parts ------- > --- POWER (2) -------- Light Antimatter Reactor > --- PROPULSION (5) --- VTOL Module Cesium-ion Thruster Nuclear Pulse Array > --- UTILITY (6) ------ Advanced Sensor Array Terrain Scan Processor Hacking Suite > --- WEAPON (4) ------- (None) > --- INVENTORY (5) ---- Advanced Heat Sink Matter Compressor (250) Advanced Transmission Jammer Heavy Gatling Laser Remote Datajack Peak State ------------ > --- POWER ------------ Quantum Reactor Light Quantum Reactor > --- PROPULSION ------- Medium Treads Biometal Heavy Treads Advanced Heavy Siege Treads > --- UTILITY ---------- Advanced Heat Sink Experimental Heat Sink Huge Storage Unit Relay Coupler [Swarmer] Relay Coupler [Sentry] A0-MCA's Component Scanner > --- WEAPON ----------- Heavy Gatling Laser Heavy Gatling Laser Enhanced Nova Cannon Enhanced Nova Cannon > --- INVENTORY -------- Light Quantum Reactor Biometal Heavy Treads Advanced Heat Sink Energy Well Large Matter Pod Large Matter Pod Advanced Sensor Array Seismic Detector Advanced Transmission Jammer Improved Medium Armor Plating Improved Medium Armor Plating Layered Medium Armor Plating Layered Medium Armor Plating Improved Shock Absorption System Hacking Suite Tractor Beam Wave Gun Railgun Helical Railgun Magnetic Acceleration Cannon Remote Datajack Remote Datajack DRS Beacon [Rating: 131] Favorites ----------- Power Improved Ion Engine Engine Improved Ion Engine Power Core Neutrino Core Reactor Light Quantum Reactor Propulsion Improved Treads Treads Improved Treads Wheel Wheel Flight Unit Nuclear Pulse Array Utility Huge Storage Unit Device Advanced Heat Sink Storage Huge Storage Unit Processor A0-MCA's Component Scanner Hackware Relay Coupler [Swarmer] Protection Medium Armor Plating Weapon Autogun Energy Gun Heavy Laser Energy Cannon Heavy Plasma Cannon Ballistic Gun Autogun Ballistic Cannon Magnetic Acceleration Cannon Launcher Grenade Launcher Special Weapon Remote Datajack Build | -11 -10 -10 -9 -9 -6 -6 -6 -6 -5 -5 -5 ------- Run | Yrd Mat Sub Rec Scr Fac Gar Fac Gar Fac Gar Fac Slots Evolved 10 | . . . . . 8 . . . 2 . . Power 1 | . . . . . 1 . . . . . . Propulsion 3 | . . . . . 3 . . . . . . Utility 4 | . . . . . 3 . . . 1 . . Weapon 2 | . . . . . 1 . . . 1 . . Parts Attached 276 | 7 36 19 . 9 15 48 9 30 3 57 43 Power 29 | 1 2 1 . . 2 8 1 4 1 5 4 Engine 18 | 1 2 1 . . 1 6 1 4 . 1 1 Core 2 | . . . . . 1 . . . 1 . . Reactor 9 | . . . . . . 2 . . . 4 3 Propulsion 89 | 2 18 7 . 6 9 13 5 7 . 13 9 Treads 69 | 2 9 5 . 4 9 11 5 7 . 13 4 Leg . | . . . . . . . . . . . . Wheel 15 | . 9 2 . 2 . 2 . . . . . Hover . | . . . . . . . . . . . . Flight 5 | . . . . . . . . . . . 5 Utility 88 | 3 10 4 . 1 3 15 3 10 1 23 15 Device 42 | 2 5 2 . . 2 10 2 5 1 6 7 Storage 3 | 1 2 . . . . . . . . . . Processor 3 | . 1 . . . . 1 . . . . 1 Hackware 16 | . . . . . . . . 2 . 11 3 Protection 24 | . 2 2 . 1 1 4 1 3 . 6 4 Artifact . | . . . . . . . . . . . . Weapon 70 | 1 6 7 . 2 1 12 . 9 1 16 15 Energy Gun 36 | 1 4 1 . . . 6 . 7 . 11 6 Energy Cannon 4 | . . . . . . 1 . . . 2 1 Ballistic Gun 14 | . 2 3 . 2 1 2 . . 1 . 3 Ballistic Cannon 3 | . . . . . . . . 1 . . 2 Launcher 6 | . . 3 . . . 3 . . . . . Special Weapon 7 | . . . . . . . . 1 . 3 3 Impact Weapon . | . . . . . . . . . . . . Slashing Weapon . | . . . . . . . . . . . . Piercing Weapon . | . . . . . . . . . . . . Special Melee Weapon . | . . . . . . . . . . . . Unidentified Prototypes . | . . . . . . . . . . . . Corrupted Parts 1 | . . . . . . 1 . . . . . System Corruption 2 | . . . . . . 2 . . . . . Parts Lost 69 | . 2 3 . . . 29 . 6 . 5 24 Power 11 | . . 1 . . . 5 . 2 . . 3 Propulsion 19 | . . . . . . 10 . 2 . 2 5 Utility 16 | . . . . . . 3 . 1 . 2 10 Weapon 23 | . 2 2 . . . 11 . 1 . 1 6 Highest Loss Streak 21 | . 1 1 . . . 11 . 2 . 2 21 To Critical Strikes 1 | . . . . . . . . 1 . . . Average Slot Usage (%) 95 | . 99 100 100 100 91 87 90 92 93 91 74 Engine 10 | . 14 14 14 14 8 10 3 6 6 2 . Reactor 1 | . . . . . . 1 6 5 . 5 8 Treads 24 | . 11 20 28 27 32 28 26 25 23 20 13 Wheel 2 | . 16 7 . . . . . . . . . Device 4 | . 6 . . . 12 9 13 12 11 8 8 Storage 10 | . 14 14 14 14 6 6 6 6 5 5 4 Processor 3 | . 7 8 . . . 3 6 6 5 5 4 Hackware 1 | . . . . . . . . 1 5 8 10 Protection 8 | . . 5 14 14 5 5 6 5 5 4 1 Energy Gun 5 | . 10 . . . . 9 13 13 17 15 6 Energy Cannon 2 | . . . . . . 5 6 3 . 4 8 Ballistic Gun 15 | . 16 22 28 28 18 3 . . 4 . . Peak Build Rating 131 | 6 16 18 17 19 57 85 81 92 85 125 131 Average Rating 43 | 4 11 15 16 18 53 64 77 82 84 102 104 On Entrance 47 | . 6 14 16 17 19 57 67 81 77 85 125 Naked Turns . | . . . . . . . . . . . . Heaviest Build 164 | 10 94 100 100 100 122 151 129 129 138 164 159 Greatest Support 183 | 40 46 46 46 46 150 150 146 158 146 178 183 Greatest Overweight (x) 45 | . 4 4 2 4 1 45 . . . 1 1 Average Overweight (x) 1 | . 3 2 2 2 . . . . . . . Largest Inventory Capacity 25 | 8 25 25 25 25 25 25 25 25 25 25 25 Average Capacity 24 | 7 24 25 25 25 25 25 25 25 25 25 21 Most Carried 25 | 8 25 25 23 25 25 25 25 25 24 25 25 Average Carried 23 | 5 21 23 22 24 23 23 24 24 23 24 20 Final Capacity 25 | 8 25 25 25 25 25 25 25 25 25 25 5 Final Carried 25 | 7 25 21 23 25 25 25 25 25 24 25 5 Class Distribution -------------------- 58% | Mutant 27% | Scavenger-Tank 3% | Commander-Tank Dominant Class ---------------- Mutant | -10/Materials Mutant | -10/Subcaves Mutant | -9/Recycling Mutant | -9/Scraptown Tank | -6/Factory Scavenger-Tank | -6/Garrison Scavenger-Tank | -6/Factory Scavenger-Tank | -6/Garrison Scavenger-Tank | -5/Factory Scavenger-Tank | -5/Garrison Gunner | -5/Factory Resources | -11 -10 -10 -9 -9 -6 -6 -6 -6 -5 -5 -5 ----------- Run | Yrd Mat Sub Rec Scr Fac Gar Fac Gar Fac Gar Fac Matter Collected 5023 | 270 930 479 108 90 . 956 . 577 . 757 856 Remotely 705 | 10 106 125 . . . 163 . 89 . . 212 Salvage Created 6010 | 191 863 350 . . . 1568 . 928 . 604 1506 Parts 263 | 15 60 28 . . . 59 . 28 . 28 45 Haulers Intercepted 4 | . 2 . . . . . . . . . 2 Recyclers Shooed . | . . . . . . . . . . . . Parts Field Recycled . | . . . . . . . . . . . . Retrieved Matter . | . . . . . . . . . . . . Parts Self-Destructed 20 | . . 20 . . . . . . . . . Prevented . | . . . . . . . . . . . . Kills | -11 -10 -10 -9 -9 -6 -6 -6 -6 -5 -5 -5 ------- Run | Yrd Mat Sub Rec Scr Fac Gar Fac Gar Fac Gar Fac Combat Hostiles Destroyed 110 | . 17 11 . . . 29 . 18 . 10 25 Guns 75 | . 15 9 . . . 15 . 12 . 8 16 Cannons 21 | . . . . . . 7 . 6 . 1 7 AOE 5 | . . 1 . . . 4 . . . . . Classes Destroyed 19 | 2 6 3 . . . 4 . 2 . 2 . Worker 4 | . 4 . . . . . . . . . . Tunneler 5 | 5 . . . . . . . . . . . Hauler 4 | . 2 . . . . . . . . . 2 Recycler 2 | 1 1 . . . . . . . . . . Operator 1 | . 1 . . . . . . . . . . Turret 2 | . . 2 . . . . . . . . . Watcher 3 | . 2 . . . . . . . . 1 . Swarmer 24 | . 6 5 . . . 6 . 4 . 3 . Cutter 2 | . . . . . . . . . . 2 . Grunt 54 | . 11 . . . . 16 . 6 . 3 18 Brawler 7 | . . . . . . . . 2 . . 5 Duelist 2 | . . . . . . . . 1 . . 1 Sentry 4 | . . . . . . 2 . 2 . . . Specialist 2 | . . . . . . 2 . . . . . Programmer 5 | . . . . . . 2 . 2 . . 1 Behemoth 3 | . . . . . . 1 . 1 . 1 . Executioner 2 | . . . . . . . . . . 2 . Artisan 1 | . . 1 . . . . . . . . . Subdweller 6 | . . 6 . . . . . . . . . Best Kill Streak 8 | 4 5 5 . . . 6 . 4 . 3 8 Combat Bots Only 8 | . 4 5 . . . 6 . 4 . 3 8 Max Kills in Single Turn 2 | 1 2 1 . . . 2 . 1 . 2 1 Gunslinging . | . . . . . . . . . . . . Exploded 2 | . . 1 . . . 2 . . . . . Melee . | . . . . . . . . . . . . Uniques/NPCs Destroyed . | . . . . . . . . . . . . Combat | -11 -10 -10 -9 -9 -6 -6 -6 -6 -5 -5 -5 -------- Run | Yrd Mat Sub Rec Scr Fac Gar Fac Gar Fac Gar Fac Hostile Shots Fired 1303 | . 59 66 . . . 546 3 179 . 71 379 Missed 371 | . 11 21 . . . 181 . 46 . 9 103 Damage Taken 16167 | . 593 732 . . . 4938 166 2458 . 1557 5723 Core 1832 | . 134 82 . . . 420 . 183 . 177 836 Absorbed by Shields 123 | . . . . . . . . . . 123 . Reduced by Siege Mode 225 | . . . . . . . . 21 . 7 197 Regen/Repaired (Parts) 95 | . 70 . . . . 25 . . . . . Core Remaining (%) 47 | 100 . . . 13 . . . 29 . . . Volleys Fired 461 | 20 71 52 . . . 110 . 74 . 58 76 Largest 4 | 1 2 2 . . . 3 . 3 . 4 4 Hottest 440 | 40 80 83 . . . 239 . 228 . 390 440 Shots Fired 962 | 20 137 90 . . . 235 1 177 . 130 172 Gun 707 | 20 137 78 . . . 158 1 110 . 99 104 Cannon 198 | . . . . . . 69 . 66 . 8 55 Launcher 20 | . . 12 . . . 8 . . . . . Special 37 | . . . . . . . . 1 . 23 13 Kinetic 263 | . 70 73 . . . 70 . 13 . 2 35 Thermal 547 | 20 . . . . . 134 1 163 . 105 124 Explosive 20 | . . 12 . . . 8 . . . . . Electromagnetic 95 | . 67 5 . . . 23 . . . . . Robot Hit Streak 20 | 11 8 17 . . . 14 . 19 . 20 16 Robot Miss Streak 6 | 1 5 3 . . . 5 1 4 . 6 3 Penetration Max 2 | . . . . . . . . . . . 2 Secondary Targets 5 | . . . . . . 2 . 1 . 1 1 Max Gunslinging Chain 1 | . . . . . . 1 . 1 . 1 1 Shots Hit Robots 560 | 18 66 42 . . . 140 . 88 . 79 127 Core Hits 294 | 7 33 25 . . . 84 1 35 . 33 76 Critical Kills 3 | . . . . . . 1 . . . . 2 Critical Parts Destroyed 2 | . 1 1 . . . . . . . . . Critical Strikes 14 | . 4 1 . . . 1 . 4 . 2 2 Burn 6 | . . . . . . . . 4 . 2 . Meltdown 3 | . . . . . . 1 . . . . 2 Destroy 2 | . 1 1 . . . . . . . . . Corrupt 3 | . 3 . . . . . . . . . . Melee Attacks . | . . . . . . . . . . . . Impact . | . . . . . . . . . . . . Slashing . | . . . . . . . . . . . . Piercing . | . . . . . . . . . . . . Sneak Attacks . | . . . . . . . . . . . . Combat Hostiles . | . . . . . . . . . . . . Follow-up Attacks . | . . . . . . . . . . . . Damage Inflicted 14253 | 201 1079 780 45 . . 4043 19 2173 . 1745 4168 Guns 9739 | 201 995 645 . . . 2399 19 1330 . 1401 2749 Cannons 3724 | . . . . . . 1118 . 843 . 344 1419 Explosions 745 | . 84 135 . . . 526 . . . . . Melee . | . . . . . . . . . . . . Ramming 45 | . . . 45 . . . . . . . . Kinetic 2968 | . 401 540 . . . 835 . 202 . 28 962 Thermal 9578 | 201 84 . . . . 2380 19 1971 . 1717 3206 Explosive 551 | . . 135 . . . 416 . . . . . Electromagnetic 1111 | . 594 105 . . . 412 . . . . . Impact . | . . . . . . . . . . . . Slashing . | . . . . . . . . . . . . Piercing . | . . . . . . . . . . . . Highest Corruption 36 | . . . . . . 4 4 4 . . 36 Average Corruption 3 | . . . . . . 2 4 4 . . 13 Corruption Purged . | . . . . . . . . . . . . Corruption Blocked . | . . . . . . . . . . . . Effects 102 | . . . . . . 35 3 49 . . 15 Message Errors 18 | . . . . . . 7 . 8 . . 3 Matter Fused 34 | . . . . . . 11 . 18 . . 5 Heat Flow Errors 12 | . . . . . . 6 1 5 . . . Energy Discharges 11 | . . . . . . 4 . 6 . . 1 Parts Fused 1 | . . . . . . . . 1 . . . Data Loss (minor) 8 | . . . . . . 2 . 4 . . 2 Data Loss (major) 4 | . . . . . . 2 . 2 . . . Misfires 6 | . . . . . . 1 1 4 . . . Alerts 3 | . . . . . . 2 1 . . . . Misdirections 3 | . . . . . . . . . . . 3 Weapon Failures 2 | . . . . . . . . 1 . . 1 Overload Shots . | . . . . . . . . . . . . Overflow Damage 51 | . 14 . . . . 19 . . . . 18 Projectiles 37 | . . . . . . 19 . . . . 18 Explosions 14 | . 14 . . . . . . . . . . Melee . | . . . . . . . . . . . . Knockbacks 7 | . . . 1 . . . . 2 . . 4 Impact 1 | . . . 1 . . . . . . . . Kinetic 5 | . . . . . . . . 2 . . 3 Secondary 1 | . . . . . . . . . . . 1 Self-Inflicted Damage 25 | . . 8 . . . 17 . . . . . Shots 2 | . . 1 . . . 1 . . . . . Rammed 7 | . . . 7 . . . . . . . . Targets Rammed 7 | . . . 7 . . . . . . . . Kicked . | . . . . . . . . . . . . Crushed . | . . . . . . . . . . . . Highest Temperature 492 | 20 327 10 . . . 422 70 270 . 492 430 Average Temperature 113 | 18 80 5 . . . 110 51 72 . 158 160 Received Heat Transfer 4464 | . 285 165 . . . 1522 24 462 . 288 1718 Effects 29 | . 3 . . . . 8 . . . 12 6 Shutdowns 11 | . . . . . . 5 . . . 5 1 Energy Bleed 5 | . . . . . . 3 . . . 1 1 Interference 6 | . 2 . . . . . . . . 1 3 Matter Decay 1 | . . . . . . . . . . 1 . Short Circuit 2 | . 1 . . . . . . . . . 1 Damage (major) 4 | . . . . . . . . . . 4 . Siege Activations 5 | . . . . . . . . 2 . 1 2 Total Turns 103 | . . . . . . . . 32 . 14 57 Longest Duration 41 | . . . . . . . . 26 . 14 41 Robots Corrupted 3 | . 2 1 . . . . . . . . . Combat Hostiles 3 | . 2 1 . . . . . . . . . Parts Fried 6 | . 3 3 . . . . . . . . . Impact Corruptions . | . . . . . . . . . . . . Robots Melted 8 | . . . . . . 5 . . . 1 2 Combat Hostiles 7 | . . . . . . 4 . . . 1 2 Parts Melted 37 | 1 . 1 . . . 10 . 5 . 11 9 Heat Transferred 15578 | 450 150 . . . . 4062 37 3481 . 2988 4410 Parts Sabotaged 7 | . . . . . . . . . . . 7 Parts Stolen . | . . . . . . . . . . . . Parts Stripped . | . . . . . . . . . . . . Power Chain Reactions 2 | . 1 . . . . 1 . . . . . Alert | -11 -10 -10 -9 -9 -6 -6 -6 -6 -5 -5 -5 ------- Run | Yrd Mat Sub Rec Scr Fac Gar Fac Gar Fac Gar Fac Peak Influence 3078 | 30 311 . 96 . . 2270 1314 3078 1615 2890 2360 Initial 1615 | . 19 . 33 . . . 1191 920 1615 1130 1516 Average 1029 | 16 156 . 12 . . 848 1286 2143 1615 1815 1904 Maximum Alert Level 5 | . 1 . . . . 5 4 5 5 5 5 Low Security (%) 31 | 100 50 . 100 . 100 14 . . . . . Level 1 10 | . 49 . . . . 17 . . . . . Level 2 5 | . . . . . . 24 . . . . . Level 3 2 | . . . . . . 7 . 4 . . . Level 4 13 | . . . . . . 15 100 17 . 31 10 Level 5 32 | . . . . . . 20 . 78 100 68 36 High Security 2 | . . . . . . . . . . . 53 Max Security . | . . . . . . . . . . . . Squads Dispatched 22 | . 2 . . . . . . . . . 20 Investigation 2 | . 2 . . . . . . . . . . Extermination 1 | . . . . . . . . . . . 1 Reinforcement 1 | . . . . . . . . . . . 1 Assault 18 | . . . . . . . . . . . 18 Garrison . | . . . . . . . . . . . . Intercept . | . . . . . . . . . . . . Searches Triggered . | . . . . . . . . . . . . Construction Impeded . | . . . . . . . . . . . . Haulers Reinforced 1 | . . . . . . . . . . . 1 Active Scanning Responses . | . . . . . . . . . . . . Cargo Convoy Interrupts . | . . . . . . . . . . . . Stealth | -11 -10 -10 -9 -9 -6 -6 -6 -6 -5 -5 -5 --------- Run | Yrd Mat Sub Rec Scr Fac Gar Fac Gar Fac Gar Fac Distress Signals 3 | . 1 . . . . . . . . 1 1 Communications Jammed . | . . . . . . . . . . . . Distress Signals . | . . . . . . . . . . . . Times Spotted 262 | . 25 15 . . . 39 1 46 . 45 91 Peak Tracking Total 20 | . 6 4 . . . 8 1 6 . 4 20 Tactical Retreats 17 | . 3 1 . . . 2 . 1 . . 10 Traps | -11 -10 -10 -9 -9 -6 -6 -6 -6 -5 -5 -5 ------- Run | Yrd Mat Sub Rec Scr Fac Gar Fac Gar Fac Gar Fac Traps Triggered 17 | . 1 . . . 1 13 . 2 . . . Indirectly . | . . . . . . . . . . . . Trap Hack Attempts . | . . . . . . . . . . . . Triggered . | . . . . . . . . . . . . Disarmed . | . . . . . . . . . . . . Reprogrammed . | . . . . . . . . . . . . Reused . | . . . . . . . . . . . . Traps Extracted . | . . . . . . . . . . . . Installed . | . . . . . . . . . . . . Triggered . | . . . . . . . . . . . . Machines | -11 -10 -10 -9 -9 -6 -6 -6 -6 -5 -5 -5 ---------- Run | Yrd Mat Sub Rec Scr Fac Gar Fac Gar Fac Gar Fac Machines Disabled 26 | . . . . . . 4 3 7 . 6 6 Max in Single Turn 1 | . . . . . . 1 . 1 . 1 1 Garrison Relay 12 | . . . . . . 2 . 5 . 5 . Machines Repaired . | . . . . . . . . . . . . Machines Dismantled . | . . . . . . . . . . . . Machines Sabotaged . | . . . . . . . . . . . . Overloaded Fab Kills . | . . . . . . . . . . . . Hacking | -11 -10 -10 -9 -9 -6 -6 -6 -6 -5 -5 -5 --------- Run | Yrd Mat Sub Rec Scr Fac Gar Fac Gar Fac Gar Fac Machines Accessed 41 | . 11 . 12 7 1 1 1 2 1 3 2 Terminals 21 | . 8 . 5 . . 1 . 2 . 3 2 Fabricators . | . . . . . . . . . . . . Repair Stations 1 | . 1 . . . . . . . . . . Recycling Units 7 | . 2 . 5 . . . . . . . . Scanalyzers . | . . . . . . . . . . . . Garrison Access 3 | . . . . . 1 . 1 . 1 . . Total Hacks 129 | . 35 . 48 29 1 2 2 2 1 6 3 Successful 101 | . 25 . 40 29 1 . 2 . 1 1 2 Failed 28 | . 10 . 8 . . 2 . 2 . 5 1 Catastrophic 3 | . . . . . . . . 2 . 1 . Database Lockouts . | . . . . . . . . . . . . Manual 49 | . 21 . 25 1 . . . . . . 2 Terminals 50 | . 23 . 14 . . 2 . 2 . 6 3 Fabricators . | . . . . . . . . . . . . Repair Stations 2 | . 2 . . . . . . . . . . Recycling Units 20 | . 10 . 10 . . . . . . . . Scanalyzers . | . . . . . . . . . . . . Garrison Access 4 | . . . . . 1 . 2 . 1 . . Terminal Hacks 62 | . 6 . 25 29 . . . . . 1 1 Record 47 | . . . 24 23 . . . . . . . Robot Analysis 5 | . . . . 5 . . . . . . . Prototype ID Bank 3 | . 3 . . . . . . . . . . Emergency Access Points 1 | . . . . . . . . . . 1 . Terminal Index 2 | . 1 . 1 . . . . . . . . Locate Traps 3 | . 2 . . . . . . . . . 1 Derelict Proto ID Bank 1 | . . . . 1 . . . . . . . Fabricator Hacks . | . . . . . . . . . . . . Repair Station Hacks 2 | . 2 . . . . . . . . . . Scan Component 1 | . 1 . . . . . . . . . . Repair 1 | . 1 . . . . . . . . . . Recycling Unit Hacks 2 | . 2 . . . . . . . . . . Report Inventory 2 | . 2 . . . . . . . . . . Scanalyzer . | . . . . . . . . . . . . Garrison Access Hacks 4 | . . . . . 1 . 2 . 1 . . Unlock Access 3 | . . . . . 1 . 1 . 1 . . Coupler Status 1 | . . . . . . . 1 . . . . Unauthorized Hacks 31 | . 15 . 15 . . . . . . . 1 Terminals 19 | . 11 . 7 . . . . . . . 1 Track 1 | . 1 . . . . . . . . . . Botnet 7 | . 4 . 2 . . . . . . . 1 Operators 1 | . 1 . . . . . . . . . . Skim 10 | . 5 . 5 . . . . . . . . Fabricators . | . . . . . . . . . . . . Repair Stations . | . . . . . . . . . . . . Recycling Units 12 | . 4 . 8 . . . . . . . . Monitor 2 | . . . 2 . . . . . . . . Reject 1 | . 1 . . . . . . . . . . Recyclers 2 | . 1 . 1 . . . . . . . . Tunnel 7 | . 2 . 5 . . . . . . . . Scanalyzers . | . . . . . . . . . . . . Garrison Access . | . . . . . . . . . . . . Data Cores Recovered 1 | . 1 . . . . . . . . . . Used 1 | . 1 . . . . . . . . . . Hacking Detections 23 | . 10 . 4 . 1 1 . 2 1 2 2 Full Trace Events . | . . . . . . . . . . . . Feedback Events . | . . . . . . . . . . . . Feedback Blocked . | . . . . . . . . . . . . Robot Schematics Acquired . | . . . . . . . . . . . . Robots Built . | . . . . . . . . . . . . Authchips . | . . . . . . . . . . . . Time . | . . . . . . . . . . . . Total Robot Build Rating . | . . . . . . . . . . . . Part Schematics Acquired . | . . . . . . . . . . . . Parts Built . | . . . . . . . . . . . . Authchips . | . . . . . . . . . . . . Time . | . . . . . . . . . . . . Total Part Build Rating . | . . . . . . . . . . . . Parts Repaired 1 | . 1 . . . . . . . . . . Time 26 | . 26 . . . . . . . . . . Parts Recycled . | . . . . . . . . . . . . Recycled Matter . | . . . . . . . . . . . . Retrieved Matter . | . . . . . . . . . . . . Retrieved Components . | . . . . . . . . . . . . Parts Scanalyzed . | . . . . . . . . . . . . Part Schematics Acquired . | . . . . . . . . . . . . Parts Damaged . | . . . . . . . . . . . . Bothacking | -11 -10 -10 -9 -9 -6 -6 -6 -6 -5 -5 -5 ------------ Run | Yrd Mat Sub Rec Scr Fac Gar Fac Gar Fac Gar Fac Used RIF Installer 3 | . . . . . . 1 . 1 . 1 . Robot Detection 1 | . . . . . . . . 1 . . . Structural Interface 1 | . . . . . . . . . . 1 . Robots Hacked 22 | . . . . . . . . 1 . 15 6 Non-combat 6 | . . . . . . . . . . 1 5 Combat 16 | . . . . . . . . 1 . 14 1 Robot Hacks Applied 26 | . . . . . . . . 1 . 16 9 parse_system 3 | . . . . . . . . . . 2 1 no_distress 1 | . . . . . . . . . . . 1 ignore_repairs 1 | . . . . . . . . . . . 1 find_fabricator 1 | . . . . . . . . . . . 1 find_dsf 1 | . . . . . . . . . . . 1 map_route 1 | . . . . . . . . . . . 1 formatsys_low 1 | . . . . . . . . . . . 1 formatsys_high 17 | . . . . . . . . 1 . 14 2 Relay Couplers Released 52 | . . . . . . 8 . 19 . 25 . Machine Destruction 52 | . . . . . . 8 . 19 . 25 . Attached 15 | . . . . . . . . 2 . 11 2 Fabnet Peak Effective % . | . . . . . . . . . . . . Robots Rewired 17 | . . . . . . 6 . 6 . 5 . Allies Hacked . | . . . . . . . . . . . . Hacks Repelled . | . . . . . . . . . . . . Allies | -11 -10 -10 -9 -9 -6 -6 -6 -6 -5 -5 -5 -------- Run | Yrd Mat Sub Rec Scr Fac Gar Fac Gar Fac Gar Fac Total Allies 38 | . . . . . . 7 . 7 . 21 3 Largest Group 9 | . . . . . . 7 7 5 2 9 6 Highest-Rated Group 494 | . . . . . . 494 494 412 68 467 438 Highest-Rated Ally 148 | . . . . . . 148 148 148 39 119 119 Total Orders 4 | . . . . . . 2 . . . . 2 STAY 2 | . . . . . . 2 . . . . . ROAM 1 | . . . . . . . . . . . 1 FOLLOW 1 | . . . . . . . . . . . 1 Ally Attacks 335 | . . . . . . 35 4 139 . 126 31 Total Damage 11760 | . . . . . . 1430 574 4781 . 3493 1482 Kills 74 | . . . . . . 6 3 32 . 22 11 Allies Corrupted . | . . . . . . . . . . . . Allies Melted . | . . . . . . . . . . . . Intel | -11 -10 -10 -9 -9 -6 -6 -6 -6 -5 -5 -5 ------- Run | Yrd Mat Sub Rec Scr Fac Gar Fac Gar Fac Gar Fac Robot Analysis Total 5 | . . . . 5 . . . . . . . Derelict Logs Recovered 2 | . . 2 . . . . . . . . . Drone Launches . | . . . . . . . . . . . . Drone Recoveries . | . . . . . . . . . . . . Exploration | -11 -10 -10 -9 -9 -6 -6 -6 -6 -5 -5 -5 ------------- Run | Yrd Mat Sub Rec Scr Fac Gar Fac Gar Fac Gar Fac Turns Passed 25913 | 231 2084 1994 2886 8022 340 3755 142 2574 115 2909 861 Spaces Moved 10470 | 112 933 776 895 2594 193 1362 64 1339 70 1571 561 Core 150 | 9 . . . . . 1 . . . . 140 Treads 8884 | 103 202 405 895 2423 193 1347 64 1339 70 1571 272 Legs . | . . . . . . . . . . . . Wheels 1287 | . 731 371 . 171 . 14 . . . . . Hover . | . . . . . . . . . . . . Flight 149 | . . . . . . . . . . . 149 Fastest Speed 30 | 50 140 140 320 140 160 160 162 160 160 150 30 Average Speed 224 | 151 177 236 320 308 163 233 162 161 160 162 97 Slowest Speed 2300 | 160 320 340 320 320 244 2300 162 163 160 245 232 Overloaded Moves . | . . . . . . . . . . . . Propulsion Burnouts . | . . . . . . . . . . . . Robots Hopped 9 | . . . . . . . . . . . 9 Cave-ins Triggered . | . . . . . . . . . . . . Exploration Rate (%) 53 | 7 98 57 93 94 5 87 2 86 3 99 13 Regions Visited 11 Branch Regions 3 Pre-discovered Areas 13 | . 3 . 8 2 . . . . . . . Known Exits Taken 4 | . . . 1 . 1 . 1 . 1 . . Unknown Exits Taken 4 | 1 1 1 . 1 . . . . . . . Scrap Searched 7 | . . 1 . 6 . . . . . . . Spaces Dug . | . . . . . . . . . . . . Terrain Destroyed 96 | . 2 29 . . . 47 . . . 1 17 Melee . | . . . . . . . . . . . . Projectile 18 | . . . . . . . . . . 1 17 AOE 78 | . 2 29 . . . 47 . . . . . Terrain Rammed . | . . . . . . . . . . . . Walls Destroyed . | . . . . . . . . . . . . Machines Disabled . | . . . . . . . . . . . . Actions | -11 -10 -10 -9 -9 -6 -6 -6 -6 -5 -5 -5 --------- Run | Yrd Mat Sub Rec Scr Fac Gar Fac Gar Fac Gar Fac Total 12078 | 153 1239 851 903 2630 213 1750 101 1616 73 1838 711 Wait 385 | 1 140 1 . 7 2 107 27 64 1 17 18 Move 10441 | 111 932 775 894 2593 192 1360 63 1337 69 1569 546 Hop 6 | . . . . . . . . . . . 6 Pick Up 124 | 12 38 2 2 9 2 19 1 16 . 19 4 Fast Attach 52 | 3 . . . 1 3 12 . 2 . 13 18 Attach 67 | 3 3 3 . . 5 21 4 7 2 6 13 Detach 8 | . . . . . . 6 . . . . 2 Swap 157 | 1 33 16 . 8 7 15 5 21 1 38 12 Drop 123 | 2 22 2 . 12 2 11 1 21 . 34 16 Fire 461 | 20 71 52 . . . 110 . 74 . 58 76 Melee . | . . . . . . . . . . . . Ram . | . . . . . . . . . . . . Kick . | . . . . . . . . . . . . Crush 7 | . . . 7 . . . . . . . . Escape Stasis 24 | . . . . . . 24 . . . . . Rewire 223 | . . . . . . 65 . 74 . 84 . Trap . | . . . . . . . . . . . . Miscellaneous . | . . . . . . . . . . . . Route ------- -11/Scrapyard -10/Materials (discovered 6 exits: [*Mat x3] / [*Min x2] / [*Sub]) -10/Subcaves (discovered 3 exits: [*Mat x2] / *Rec) -9/Recycling (discovered 2 exits: *Fac / *Scr) -9/Scraptown (discovered 2 exits: *Fac x2) -6/Factory -6/Garrison (discovered 3 exits: *Fac x3) -6/Factory -6/Garrison (discovered 3 exits: *Fac x3) -5/Factory -5/Garrison (discovered 3 exits: *Fac x3) -5/Factory History --------- Turn | Location | Event 8 | -11/Scrapyard | Discovered new exit (range 14) 232 | -11/Scrapyard | Entered Materials 315 | -10/Materials | Build established: Mutant 889 | -10/Materials | Discovered new exit (range 12) 1233 | -10/Materials | Discovered new exit (range 8) 1381 | -10/Materials | Repaired Lgt. Treads 1446 | -10/Materials | Discovered new exit (range 15) 1552 | -10/Materials | Learned Storage stockpile data 1667 | -10/Materials | Learned location of 1 exit from Recycling 1687 | -10/Materials | Learned 4 Recycling zone layouts 1695 | -10/Materials | Learned 2 Materials zone layouts 1696 | -10/Materials | Learned location of Recycling (-9) 1701 | -10/Materials | Learned 2 Materials zone layouts 1807 | -10/Materials | Discovered new exit (range 3) 1872 | -10/Materials | Discovered new exit (range 16) 2143 | -10/Materials | Core integrity fell below 50% 2297 | -10/Materials | Discovered new exit (range 4) 2316 | -10/Materials | Entered Subcaves 2355 | -10/Subcaves | Shifting Twisted Machinery released Piercing Trap 2658 | -10/Subcaves | Shifting Twisted Machinery released Spk. Treads 2689 | -10/Subcaves | Shifting Twisted Machinery released Sub. Beam Cannon 2788 | -10/Subcaves | Ambushed by Subdweller buried in earth 3004 | -10/Subcaves | Ambushed by angry Subdweller bent on revenge 3381 | -10/Subcaves | Discovered new exit (range 15) 3506 | -10/Subcaves | Core integrity fell below 20% 3558 | -10/Subcaves | Learned location of 1 exit from Materials 3720 | -10/Subcaves | Discovered new exit (range 10) 3807 | -10/Subcaves | Shifting Twisted Machinery released Flamer 3843 | -10/Subcaves | Shifting Twisted Machinery released Battle Cannon 3887 | -10/Subcaves | Discovered new exit (range 15) 4310 | -10/Subcaves | Entered Recycling 4311 | -9/Recycling | Identified exit to Factory 5448 | -9/Recycling | Scanned before Scraplab entrance 6200 | -9/Recycling | Learned 2 Storage zone layouts 6249 | -9/Recycling | Learned Storage stockpile data 6260 | -9/Recycling | Learned Materials stockpile data 6264 | -9/Recycling | Identified exit to Scraptown 6268 | -9/Recycling | Learned location of Zion (-7) 6280 | -9/Recycling | Learned Storage emergency access door positions 7154 | -9/Recycling | Entered Scraplab 7196 | -9/Recycling | Entered Scraptown 7663 | -9/Scraptown | Discovered new exit (range 5) 7964 | -9/Scraptown | Visited Cyclists 8073 | -9/Scraptown | Visited Red Mages 8252 | -9/Scraptown | Visited TADAMA 8325 | -9/Scraptown | Visited The Evicted 8418 | -9/Scraptown | Visited UFD Registry 8418 | -9/Scraptown | Registered with UFD as "Gearrunner" 8514 | -9/Scraptown | Visited Botcube Research 8604 | -9/Scraptown | Visited Curators Association 8700 | -9/Scraptown | Visited Supply Room 8800 | -9/Scraptown | Visited Science Guys 8976 | -9/Scraptown | Visited DA-N13 Charitable Foundation 9002 | -9/Scraptown | Found DCF Scrap (29 items) 9069 | -9/Scraptown | Visited Derelict Rescue Squad 9101 | -9/Scraptown | Found DRS Beacon 9256 | -9/Scraptown | Visited Analyses Database 9731 | -9/Scraptown | Discovered new exit (range 5) 9875 | -9/Scraptown | Visited A0-MCA Data Center 9901 | -9/Scraptown | Given a B- rating by A0-MCA 9908 | -9/Scraptown | Found A0-MCA's Component Scanner 9989 | -9/Scraptown | Visited Research Penetration Think Tank 10072 | -9/Scraptown | Visited Scrap Suit Storage 10143 | -9/Scraptown | Found Scrap Suit 10208 | -9/Scraptown | Heard Great Nut preacher, LISTEN AND RECITE! 12322 | -9/Scraptown | Visited CPS Storage 12367 | -9/Scraptown | Visited Spacefarers 12543 | -9/Scraptown | Visited IN-MT5's Study 12683 | -9/Scraptown | Entered Cyclist Reading Room 12696 | -9/Scraptown | Learned location of Exiles (-9) 15218 | -9/Scraptown | Entered Factory 15218 | -6/Factory | Evolved 8 slots: Power x1, Propulsion x3, Utility x3, Weapon x1 15557 | -6/Factory | Identified exit to Garrison 15558 | -6/Factory | Entered Garrison 15560 | -6/Garrison | Build established: Tank 15596 | -6/Garrison | Triggered checkpoint 15776 | -6/Garrison | Lost 11 parts (2p3n2u4w) 15862 | -6/Garrison | Triggered checkpoint 15878 | -6/Garrison | Triggered checkpoint 15961 | -6/Garrison | Lost 8 parts (1p2n1u4w) 15974 | -6/Garrison | Triggered checkpoint 16080 | -6/Garrison | Triggered checkpoint 16213 | -6/Garrison | Build established: Scavenger-Tank 16330 | -6/Garrison | Discovered new exit (range 11) 16576 | -6/Garrison | Triggered checkpoint 17063 | -6/Garrison | Discovered new exit (range 9) 17149 | -6/Garrison | Spotted B-75 Beast 17168 | -6/Garrison | Destroyed B-75 Beast 17381 | -6/Garrison | Rewired B-90 Cyclops 17402 | -6/Garrison | Rewired B-86 Titan 17788 | -6/Garrison | Triggered checkpoint 17829 | -6/Garrison | Discovered new exit (range 14) 17948 | -6/Garrison | Triggered checkpoint 18046 | -6/Garrison | Triggered checkpoint 18061 | -6/Garrison | Garrison Relay disabled 18453 | -6/Garrison | Build established: Commander-Tank 18840 | -6/Garrison | Heavy support dispatched to Factory 18845 | -6/Garrison | Heavy support dispatched to Factory 18935 | -6/Garrison | Installed Relay Interface Framework 19076 | -6/Garrison | Garrison Relay disabled 19313 | -6/Garrison | Entered Factory 19313 | -6/Factory | Accompanied by 7 allies 19333 | -6/Factory | Spotted B-75 Beast 19341 | -6/Factory | Allies destroyed B-75 Beast 19426 | -6/Factory | Identified exit to Garrison 19455 | -6/Factory | Entered Garrison 19455 | -6/Garrison | Accompanied by 5 allies 19521 | -6/Garrison | Triggered checkpoint 19522 | -6/Garrison | Core integrity fell below 50% 19570 | -6/Garrison | Garrison Relay disabled 19650 | -6/Garrison | Build established: Scavenger-Tank 19659 | -6/Garrison | Triggered checkpoint 19679 | -6/Garrison | Triggered checkpoint 19820 | -6/Garrison | Discovered new exit (range 3) 19835 | -6/Garrison | Triggered checkpoint 19941 | -6/Garrison | Triggered checkpoint 20013 | -6/Garrison | Triggered checkpoint 20032 | -6/Garrison | Garrison Relay disabled 20125 | -6/Garrison | Allies destroyed Cyclops 5a 20201 | -6/Garrison | Discovered new exit (range 12) 20249 | -6/Garrison | Triggered checkpoint 20331 | -6/Garrison | Triggered checkpoint 20356 | -6/Garrison | Garrison Relay disabled 20739 | -6/Garrison | Triggered checkpoint 20835 | -6/Garrison | Discovered new exit (range 11) 21005 | -6/Garrison | Triggered checkpoint 21117 | -6/Garrison | Triggered checkpoint 21171 | -6/Garrison | Lost 3 allies 21239 | -6/Garrison | Triggered checkpoint 21299 | -6/Garrison | Expanded RIF knowledge: Robot Detection 21437 | -6/Garrison | Triggered checkpoint 21657 | -6/Garrison | Spotted B-90 Cyclops 21684 | -6/Garrison | Destroyed B-90 Cyclops 21976 | -6/Garrison | Garrison Relay disabled 22029 | -6/Garrison | Entered Factory 22029 | -5/Factory | Accompanied by 2 allies 22029 | -5/Factory | Evolved 2 slots: Utility x1, Weapon x1 22143 | -5/Factory | Identified exit to Garrison 22144 | -5/Factory | Entered Garrison 22144 | -5/Garrison | Accompanied by 2 allies 22166 | -5/Garrison | Triggered checkpoint 22184 | -5/Garrison | Garrison Relay disabled 22292 | -5/Garrison | Triggered checkpoint 22331 | -5/Garrison | Spotted B-75 Beast 22345 | -5/Garrison | Destroyed B-75 Beast 22351 | -5/Garrison | Lost 5 allies 22368 | -5/Garrison | Triggered checkpoint 22390 | -5/Garrison | Triggered checkpoint 22429 | -5/Garrison | Triggered checkpoint 22571 | -5/Garrison | Discovered new exit (range 13) 22606 | -5/Garrison | Triggered checkpoint 22634 | -5/Garrison | Garrison Relay disabled 22652 | -5/Garrison | Triggered checkpoint 22692 | -5/Garrison | Expanded RIF knowledge: Structural Interface 22994 | -5/Garrison | Triggered checkpoint 23054 | -5/Garrison | Triggered checkpoint 23082 | -5/Garrison | Garrison Relay disabled 23148 | -5/Garrison | Discovered new exit (range 11) 23324 | -5/Garrison | Spotted Executioner 23324 | -5/Garrison | Spotted Executioner 23382 | -5/Garrison | Destroyed Executioner 23387 | -5/Garrison | Lost 6 allies 23389 | -5/Garrison | Destroyed Executioner 23453 | -5/Garrison | Rewired Executioner 23471 | -5/Garrison | Rewired Executioner 23657 | -5/Garrison | Spotted B-75 Beast 23674 | -5/Garrison | Allies destroyed B-75 Beast 23971 | -5/Garrison | Discovered new exit (range 12) 23984 | -5/Garrison | Triggered checkpoint 24021 | -5/Garrison | Garrison Relay disabled 24024 | -5/Garrison | Triggered checkpoint 24089 | -5/Garrison | Found embedded Infiltrators 24860 | -5/Garrison | Triggered checkpoint 24894 | -5/Garrison | Garrison Relay disabled 25053 | -5/Garrison | Entered Factory 25053 | -5/Factory | Accompanied by 6 allies 25149 | -5/Factory | Lost 6 allies 25353 | -5/Factory | First assault squad dispatched 25456 | -5/Factory | High security lockdown imminent 25536 | -5/Factory | High security lockdown engaged 25540 | -5/Factory | Build established: Gunner 25586 | -5/Factory | Destroyed 8 combat bots 25650 | -5/Factory | System corruption reached 10% 25762 | -5/Factory | Core integrity fell below 50% 25768 | -5/Factory | System corruption reached 30% 25800 | -5/Factory | Lost 21 parts (3p4n8u6w) 25813 | -5/Factory | Core integrity fell below 20% 25914 | -5/Factory | Destroyed by H-66 Slayer with Gauss Rifle Last Messages --------------- 25882_ Dropped Helical Railgun. 25887_ Acquired 37 matter. 25888_ RIF reveals location of hidden door. 25897_ EBIU:L JT><0ZQSPHXCSTI 25907_ Acquired VTOL Module. 25910_ Acquired Faulty Cld. Nuclear Pulse Thruster. 25910_ Faulty integration triggers system corruption (+3). 25912_ Dropped Faulty Cld. Nuclear Pulse Thruster. 25913_ PJ:X<7Y8EJTW6<,KBDEH0QZRB9,RA YG| 25913_ C-30 ARC bursts open, deploying its payload. 25913_ H-66 Slayer unfolds itself. 25913_ P-70 Sage unfolds itself. 25913_ I-47 Archangel unfolds itself. 25913_ Acquired 20 matter. 25914_ Slug penetrates H-66 Slayer. 25914_ Penetrated by Slug. Map ----- +----------------------------------------------------+ | ????########+##+##### # #?????? | | ?# + + """ #?????? | | ?? """"""""" # ##### # """ #?????? | | ?# # #?####+## """ #?????? | | ?#! """"""""" # #?# # #?????? | | ?# # #?# # = #?????? | | ???########+### #?# # #?????? | | ???# # ### ### """#######?????? | | ???# # ## ## """#???????????? | | ???# + ## """#???????????? | | ???# # ## ## #???????????? | | ???# # ####### """#???????????? | | ???# #*##????# """#???????????? | | ???###+####%##????# ???????????????? | | ?????# ## #=#?????# ????????????????? | | ?????# ## # #?????#?????????????????? | | ?????# ## # #???????????????????????? | | ?????# ## # #?########??????????????? | | ?????# #### ### #??????????????? | | ?????# ## =[! # """ #??????????????? | | ?????# ## [%[ # """ #??????????????? | | ?????# ! [ + """ #??????????????? | | ?????#### i# #??????????????? | | ????????# hp #= #??????????????? | | ??###???##*%h###########????????????? | | # [ ! #%=@##### #????????????? | | #"" += #????????????? | | #"" #% % #????????????? | | #""" ??# *%= %* " #??????????? | | ??"" ????##[######= ###??????????? | | ??"??????##[##?##??# ###????????????? | | ?????????##%##???????#??????????????? | | ?????????##=##??????????????????????? | | ?????????##%##??????????????????????? | | ???########+#####???????????????????? | | ???# ! =!=*=*]! #?????????? ???????? | | ???# !!==]"" #???????? ???????? | | ???#= """"%=!T" #?????? #??????? | | ???# """"! *"" # ????????? | | ???# """" *" """?????????? | | ???# """" %" ""??????????? | | ???# """" =+ """ ""??????????? | | ???# """" # """ ???????????? | | ???# """" # "S ????????????? | | ???# #?""" ??????????? | | ???# #?????? ???????????? | | ???# #???????????????????? | | ???############+#######+#####???????? | | ???????????# ??????? | | ???????????# ??????? | +----------------------------------------------------+ Best States ------------- Heat Dissipation 102 Energy Generation 45 Energy Capacity 600 Matter Stores 300 Matter Capacity 300 Sight Range 16 Robot Scan Range 16 Terrain Scan Density 85 Armor Coverage 750 Evasion (%) 64 Targeting Accuracy 5 Recoil Reduction 5 Offensive Hacking 10 Relay Coupler Types 3 Relay Coupler Value 81 Item Schematics ----------------- None Robot Schematics ------------------ None Fabricated ------------ Nothing Alien Tech Used ----------------- None Achievements -------------- None Challenges ------------ None Game ------ Seed HybridAntimatterShielding Manual? 0 Play Time 03:11:09 Cumulative 72.4 hours Start 2024.10.27 @ 11:34:17 End 2024.10.28 @ 00:44:29 Sessions 3 Manual Loads 0 Difficulty Rogue Special Mode None Game No. 66 Rogue 66 Adventurer 0 Explorer 0 Win Type - Total 2 Types 2/0/0/0/0/0/0/0/0 Lore% 41 Gallery% 45 Achievement% 40 Wizard Run 0 Options --------- Layout 1 ASCII 0 Keyboard 1 Movement Arrows Keybinds 0 Fullscreen 2 Font 24/Smallcaps Map View 50x35 Zoom Use 0% Tactical HUD 1 Map Filters NONE Filters NONE Steam 1 RUN: 1be27040-ccf1-4ec8-be06-45cfc702f923